bitfinex-derivatives/quotes_ETHF0:USTF0_20241024
["timestamp","ask_amount","ask_price","bid_price","bid_amount"]
[1729733516922,0.354,2544.8,2544.6,0.35401]
[1729733517121,0.35401,2544.7,2544.5,3.2078]
[1729733517324,5.2755548,2545.0,2544.5,3.2078]
[1729733517325,0.35402,2544.6,2544.5,3.56183]
[1729733517633,5.2755548,2545.0,2544.8,0.35399]
[1729733517930,5.6295248,2545.0,2544.8,0.35399]
[1729733518132,0.35399,2544.9,2544.7,0.354]
[1729733518734,0.35399,2544.9,2544.8,0.35399]
[1729733518924,5.2755548,2545.0,2544.8,0.35399]
[1729733519125,5.6295248,2545.0,2544.8,0.35399]
[1729733520631,0.35399,2544.9,2544.7,0.354]
[1729733521025,0.354,2544.8,2544.5,4.3538]
[1729733521224,0.35399,2544.8,2544.5,3.2078]
[1729733521441,5.2755548,2545.0,2544.6,0.35401]
[1729733521730,0.354,2544.8,2544.6,0.35401]
[1729733522128,4.43946108,2544.7,2544.6,0.35402]
[1729733524032,0.7568,2545.0,2544.6,4.6834]
[1729733524236,5.12606,2545.1,2544.9,0.35397]
[1729733524434,5.12606,2545.1,2545.0,0.35397]
[1729733524832,4.7721,2545.1,2545.0,0.35397]
[1729733525228,3.9935,2545.1,2545.0,0.35397]
[1729733527131,4.34745,2545.1,2545.0,0.35397]
[1729733528435,3.9935,2545.1,2544.6,0.7538]
[1729733528636,0.354,2544.8,2544.6,1.10781]
[1729733528841,0.7747,2544.7,2544.6,1.10782]
[1729733530344,0.7747,2544.7,2544.2,3.2078]
[1729733530535,0.8117,2544.6,2544.5,0.35404]
[1729733530844,3.2078,2544.8,2544.7,0.35401]
[1729733531232,1.93697,2545.0,2544.8,0.35398]
[1729733531434,5.66424862,2545.1,2544.4,4.09291]
[1729733531645,0.7961,2545.4,2545.2,0.35393]
[1729733531646,1.15002,2545.4,2545.2,0.35393]
[1729733531944,4.33220624,2545.3,2545.2,0.35393]
[1729733532635,4.33220624,2545.3,2545.2,4.28273]
[1729733532839,4.7908,2545.5,2545.2,3.9288]
[1729733533038,0.35391,2545.4,2545.2,0.35393]
[1729733533836,4.7908,2545.5,2545.0,1.146]
[1729733534043,4.7908,2545.5,2545.4,0.35391]
[1729733534238,5.1447,2545.5,2545.4,0.35391]
[1729733534550,4.7908,2545.5,2545.4,0.35391]
[1729733535041,5.1447,2545.5,2545.0,4.3538]
[1729733535437,5.1447,2545.5,2545.0,4.70776]
[1729733535639,5.1447,2545.5,2545.1,0.35395]
[1729733535843,4.7908,2545.5,2545.2,0.35393]
[1729733536339,4.7908,2545.5,2545.3,0.7505]
[1729733536739,5.14471,2545.5,2545.3,0.7505]
[1729733537543,5.1447,2545.5,2545.3,0.7505]
[1729733537740,4.7908,2545.5,2545.0,3.2078]
[1729733537939,4.7908,2545.5,2545.1,1.146]
[1729733537940,5.68167789,2545.4,2545.1,1.146]
[1729733538545,5.32776789,2545.4,2544.9,0.7505]
[1729733538747,3.2078,2545.2,2544.7,1.146]
[1729733539047,3.2078,2545.2,2544.5,1.146]
[1729733539048,7.71020806,2545.1,2544.5,1.146]
[1729733539239,3.2078,2544.9,2544.4,3.9594]
[1729733539440,0.35402,2544.6,2544.4,0.7516]
[1729733539642,1.14634,2544.5,2544.4,0.7516]
[1729733539954,0.7923,2544.5,2544.3,1.111]
[1729733540144,0.7923,2544.5,2544.2,0.7516]
[1729733540345,1.15096,2544.4,2544.2,0.7516]
[1729733541345,0.35414,2543.8,2543.4,0.35418]
[1729733541541,3.25334862,2543.7,2543.2,3.2078]
[1729733541744,7.39514638,2543.7,2543.2,3.2078]
[1729733541944,1.5943,2543.6,2543.2,3.2078]
[1729733542345,2.45644862,2543.3,2542.8,0.35426]
[1729733542546,0.35422,2543.2,2542.8,0.35426]
[1729733542751,0.35424,2543.1,2542.7,0.35428]
[1729733543148,4.45293356,2543.2,2542.7,0.35428]
[1729733543455,2.45644862,2542.8,2542.4,3.2078]
[1729733543751,2.81075862,2542.6,2542.2,0.22732051]
[1729733543954,2.45644862,2542.6,2542.2,0.35435]
[1729733544148,0.59775888,2542.5,2541.9,1.111]
[1729733544550,3.2078,2542.7,2542.5,0.3543]
[1729733545050,3.2078,2542.7,2542.6,0.3543]
[1729733546565,7.3647455,2543.0,2542.6,0.35429]
[1729733547051,0.3543,2542.6,2542.1,0.35436]
[1729733547257,0.762,2542.5,2542.1,0.35436]
[1729733547464,4.92351403,2542.5,2542.1,0.35436]
[1729733547755,3.2078,2542.4,2542.1,0.35436]
[1729733548147,3.2078,2542.4,2541.9,1.2103]
[1729733548148,4.16151403,2542.3,2541.9,1.2103]
[1729733548458,4.16151403,2542.3,2542.2,0.35435]
[1729733548951,0.762,2542.5,2542.2,3.9336]
[1729733549145,0.762,2542.5,2542.4,0.35433]
[1729733549342,4.16063942,2542.4,2542.3,0.35434]
[1729733549748,0.762,2542.5,2542.1,1.174]
[1729733549951,0.762,2542.5,2542.4,0.35433]
[1729733553052,0.762,2542.5,2542.2,1.175]
[1729733553053,3.8130175,2542.8,2542.7,0.35429]
[1729733553255,3.8130175,2542.8,2542.6,0.35429]
[1729733553448,3.8130175,2542.8,2542.5,0.35431]
[1729733553646,4.1672875,2542.8,2542.5,0.35431]
[1729733553843,0.7859,2542.7,2542.5,0.35431]
[1729733554049,0.7859,2542.7,2542.6,0.3543]
[1729733554545,9.25473138,2542.7,2542.0,1.175]
[1729733554746,8.52973138,2542.7,2542.4,0.35433]
[1729733555251,4.96763138,2542.7,2542.1,3.2078]
[1729733555558,4.96763138,2542.7,2542.6,0.3543]
[1729733555955,4.96763138,2542.7,2542.1,3.2078]
[1729733556151,3.0265175,2542.6,2541.9,0.0983]
[1729733556460,3.0265175,2542.6,2542.3,0.35433]
[1729733556461,4.14008017,2542.5,2542.3,0.35433]
[1729733556860,4.14008017,2542.5,2541.9,0.0983]
[1729733557158,4.14008017,2542.5,2542.4,0.35433]
[1729733557351,4.14008017,2542.5,2542.3,0.35434]
[1729733557863,4.14008017,2542.5,2542.4,0.35433]
[1729733558359,3.54908062,2542.5,2542.4,0.35433]
[1729733558556,3.54908062,2542.5,2542.3,0.35433]
[1729733558950,3.54908062,2542.5,2542.4,0.35433]
[1729733559161,3.9937,2542.7,2542.5,0.35431]
[1729733559653,3.9937,2542.7,2542.6,0.3543]
[1729733561551,3.9937,2542.7,2542.5,0.3543]
[1729733562258,3.9937,2542.7,2542.6,0.3543]
[1729733562452,4.34799,2542.7,2542.5,0.35431]
[1729733562957,3.9937,2542.7,2542.2,1.9904]
[1729733563256,3.9937,2542.7,2542.5,0.3543]
[1729733563456,3.9937,2542.7,2542.6,0.3543]
[1729733564553,0.7859,2542.7,2542.6,0.3543]
[1729733565153,3.2078,2543.0,2542.7,0.35428]
[1729733565359,0.35428,2542.8,2542.4,3.2078]
[1729733565558,0.35429,2542.7,2542.5,0.35431]
[1729733566356,0.35431,2542.6,2542.4,0.35432]
[1729733566559,1.14411,2542.6,2542.4,0.35432]
[1729733566960,2.81303718,2542.5,2542.3,0.35434]
[1729733568454,2.45871718,2542.5,2542.1,4.4508]
[1729733568749,1.14411,2542.6,2542.4,0.35432]
[1729733569565,0.7898,2542.6,2542.1,4.4508]
[1729733569754,0.7898,2542.6,2542.1,1.243]
[1729733570163,1.14411,2542.6,2542.4,0.35433]
[1729733570457,0.7898,2542.6,2542.1,1.243]
[1729733570657,0.35433,2542.4,2542.1,0.35437]
[1729733570864,0.35433,2542.4,2542.2,0.35435]
[1729733570865,0.7877,2542.3,2542.2,0.35435]
[1729733572158,0.7877,2542.3,2541.9,0.0983]
[1729733572461,6.80856718,2542.3,2542.1,0.35436]
[1729733572664,3.24641718,2542.3,2542.2,0.35436]
[1729733572864,0.7877,2542.3,2542.2,0.35436]
[1729733573257,0.7877,2542.3,2541.9,0.0983]
[1729733573461,0.7877,2542.3,2542.2,0.35436]
[1729733580473,4.35191,2542.6,2542.5,0.35431]
[1729733580474,3.9976,2542.6,2542.5,0.35431]
[1729733580876,8.5887344,2542.6,2542.1,0.35437]
[1729733581072,8.2344344,2542.6,2542.5,0.35431]
[1729733581277,8.5887344,2542.6,2542.5,0.35431]
[1729733581867,8.2344344,2542.6,2542.5,0.35431]
[1729733582676,4.2368344,2542.6,2542.5,0.35431]
[1729733582881,6.42851718,2542.9,2542.8,0.35427]
[1729733582882,3.9698,2542.9,2542.8,0.35427]
[1729733583182,3.2078,2542.9,2542.8,0.35427]
[1729733583378,3.2078,2542.9,2542.6,2.8353]
[1729733583379,0.748,2543.0,2542.9,0.35426]
[1729733585285,1.13151,2543.3,2542.6,2.8353]
[1729733585482,1.5919,2543.3,2543.2,0.35422]
[1729733585683,1.5919,2543.3,2542.7,4.36153274]
[1729733585879,6.04423535,2543.3,2542.8,0.32004178]
[1729733586076,6.04423535,2543.3,2543.2,0.35422]
[1729733586284,5.69002535,2543.3,2543.2,0.12309383]
[1729733586587,0.35424,2543.1,2542.9,0.35425]
[1729733586794,0.35424,2543.1,2543.0,0.12309548]
[1729733587884,0.35424,2543.1,2543.0,0.32005455]
[1729733588191,0.35424,2543.1,2543.0,0.32005375]
[1729733588379,0.35424,2543.1,2543.0,0.12309548]
[1729733588585,0.35424,2543.1,2543.0,0.32005423]
[1729733588790,0.35424,2543.1,2542.9,0.35425]
[1729733588993,5.69002535,2543.3,2543.0,0.3200586]
[1729733589290,0.35422,2543.2,2543.1,0.12309946]
[1729733589684,4.46102756,2543.2,2543.1,0.12309946]
[1729733591787,4.10680756,2543.2,2543.1,0.47732946]
[1729733592092,4.10680756,2543.2,2543.1,0.35423]
[1729733592293,4.46102756,2543.2,2543.1,0.12309463]
[1729733593188,4.10680756,2543.2,2543.1,0.47732463]
[1729733593388,4.10680756,2543.2,2543.1,0.35423]
[1729733594089,4.0014,2543.7,2543.6,0.35416]
[1729733594496,8.10407998,2543.7,2543.6,0.35416]
[1729733595184,8.10407998,2543.7,2543.3,2.0242]
[1729733595185,12.03527998,2543.7,2543.3,2.0242]
[1729733595386,8.10407998,2543.7,2543.6,0.35416]
[1729733595787,12.03527998,2543.7,2543.6,0.35416]
[1729733596388,8.10407998,2543.7,2543.6,0.35416]
[1729733596687,4.89627998,2543.7,2543.6,0.35416]
[1729733596892,3.2078,2544.0,2543.4,3.34419718]
[1729733597089,3.2078,2544.0,2543.9,0.35412]
[1729733597491,7.69501764,2544.0,2543.9,0.35412]
[1729733597693,3.2078,2544.0,2543.9,0.35412]
[1729733598500,1.1384,2544.1,2543.9,0.35412]
[1729733598695,3.2078,2544.0,2543.9,0.35412]
[1729733598891,33.5492,2544.3,2543.7,4.09317]
[1729733598892,4.757,2544.3,2543.7,4.09317]
[1729733599093,4.757,2544.3,2544.2,0.35408]
[1729733599398,4.22508419,2544.2,2544.1,0.35408]
[1729733599692,5.11106,2544.3,2544.1,0.35408]
[1729733600094,4.2092621,2544.2,2544.1,0.35408]
[1729733600294,4.2092621,2544.2,2543.8,1.5806]
[1729733600295,4.2092621,2544.2,2544.0,0.3541]
[1729733600490,4.2092621,2544.2,2543.8,1.5806]
[1729733600693,4.5633421,2544.2,2544.1,0.35409]
[1729733601094,4.2092621,2544.2,2544.1,0.35409]
[1729733602791,4.2092621,2544.2,2543.9,0.0982]
[1729733603003,2.81281718,2544.0,2543.9,0.0982]
[1729733603201,0.35413,2543.9,2543.6,0.35415]
[1729733603398,1.15423,2543.9,2543.6,0.35415]
[1729733603702,1.15423,2543.9,2543.4,3.2078]
[1729733603703,5.29626633,2543.8,2543.5,1.274]
[1729733603900,5.29626633,2543.8,2543.7,0.35415]
[1729733604502,5.29626633,2543.8,2543.5,1.274]
[1729733604698,7.75498351,2543.8,2543.4,0.0982]
[1729733604905,7.75498351,2543.8,2543.4,1.274]
[1729733604906,0.35417,2543.6,2543.4,1.274]
[1729733605090,3.2078,2543.7,2543.4,1.274]
[1729733605296,0.35417,2543.6,2543.4,1.62818]
[1729733605496,4.42663106,2543.6,2543.2,0.3542]
[1729733605704,6.88534824,2543.6,2543.2,0.0983]
[1729733606199,0.3542,2543.3,2543.2,0.0983]
[1729733606404,0.3542,2543.3,2543.1,0.35422]
[1729733606598,1.09873,2543.2,2543.0,0.35424]
[1729733606802,0.7445,2543.2,2542.8,2.0277]
[1729733607004,0.7445,2543.2,2543.0,0.35424]
[1729733607005,4.47208028,2543.1,2543.0,0.35424]
[1729733610705,4.82632028,2543.1,2542.9,0.35425]
[1729733611009,5.21858028,2543.1,2542.8,0.0983]
[1729733611308,0.35424,2543.0,2542.8,0.35426]
[1729733611492,5.57282028,2543.1,2542.8,0.35426]
[1729733611697,5.57282028,2543.1,2542.7,1.275]
[1729733611897,5.57282028,2543.1,2542.9,0.35426]
[1729733612498,5.57282028,2543.1,2542.6,4.0812]
[1729733612499,0.35426,2542.9,2542.6,4.0812]
[1729733612699,0.35426,2542.9,2542.6,0.8734]
[1729733613200,5.21858028,2543.1,2542.7,0.35428]
[1729733613408,0.35426,2543.0,2542.7,0.35428]
[1729733613707,4.37579679,2542.9,2542.8,0.35426]
[1729733613904,4.37579679,2542.9,2542.6,0.8734]
[1729733614203,4.73003679,2543.0,2542.7,0.35428]
[1729733614406,0.35424,2543.0,2542.7,0.35428]
[1729733614599,4.30211742,2542.9,2542.7,0.35428]
[1729733615005,4.30211742,2542.9,2542.6,0.8734]
[1729733615204,4.30211742,2542.9,2542.7,0.35429]
[1729733615608,4.30211742,2542.9,2542.8,0.35427]
[1729733616200,7.42e-06,2542.9,2542.8,9.95358718]
[1729733616403,3.2078,2543.5,2542.8,9.95358718]
[1729733616404,0.35413,2543.8,2543.6,0.35415]
[1729733616607,0.7657,2543.7,2543.6,0.35415]
[1729733616805,0.7657,2543.7,2543.3,1.275]
[1729733617109,0.7657,2543.7,2543.0,5.66651718]
[1729733617412,0.35421,2543.3,2542.9,3.2078]
[1729733617707,5.86762033,2543.2,2543.1,0.35423]
[1729733620904,0.35423,2543.1,2542.9,0.35425]
[1729733621113,3.2078,2543.4,2543.0,2.45871718]
[1729733621412,0.7927,2543.6,2543.3,0.3542]
[1729733621413,1.15158,2543.5,2543.3,0.3542]
[1729733621604,0.7974,2543.5,2542.9,3.2078]
[1729733621803,5.05254366,2543.5,2543.3,0.35419]
[1729733622205,5.05254366,2543.5,2543.4,0.35419]
[1729733622710,5.05254366,2543.5,2543.3,0.35419]
[1729733624210,3.2078,2544.0,2543.9,0.35412]
[1729733624404,4.07229294,2544.0,2543.9,0.35412]
[1729733624601,12.11224774,2544.0,2543.9,0.35412]
[1729733624810,8.00349294,2544.0,2543.9,0.35412]
[1729733625006,12.11224774,2544.0,2543.9,0.35412]
[1729733627010,12.46635774,2544.0,2543.8,0.35413]
[1729733627211,8.1155548,2544.0,2543.8,0.35413]
[1729733627814,8.1155548,2544.0,2543.9,0.35412]
[1729733628109,8.1810818,2544.0,2543.9,0.35412]
[1729733628308,12.1122818,2544.0,2543.9,0.35412]
[1729733628506,8.1810818,2544.0,2543.9,0.35412]
[1729733628918,8.1155548,2544.0,2543.9,0.35412]
[1729733629522,8.1155548,2544.0,2543.8,0.35412]
[1729733630119,8.1155548,2544.0,2543.9,0.35412]
[1729733630612,8.1155548,2544.0,2543.8,0.35413]
[1729733631120,8.1155548,2544.0,2543.5,4.47071718]
[1729733631315,0.35412,2543.9,2543.7,0.35415]
[1729733631510,0.35412,2543.9,2543.6,0.35415]
[1729733631713,4.38324568,2543.8,2543.5,4.47071718]
[1729733632020,4.38324568,2543.8,2543.7,0.35415]
[1729733633411,4.38324568,2543.8,2543.5,4.47071718]
[1729733633412,4.38324568,2543.8,2543.6,0.35415]
[1729733633721,4.38324568,2543.8,2543.7,0.35415]
[1729733636821,4.0068,2544.0,2543.9,0.35412]
[1729733637028,3.2078,2544.3,2543.9,2.45871718]
[1729733637416,3.2078,2544.3,2544.2,0.35408]
[1729733637617,3.2078,2544.3,2543.9,2.45871718]
[1729733637814,3.2078,2544.3,2544.0,0.3541]
[1729733637815,0.35408,2544.2,2544.0,0.3541]
[1729733638125,7.29241701,2544.3,2543.7,1.262]
[1729733638126,8.05240879,2544.1,2543.7,1.262]
[1729733638314,1.4873,2544.0,2543.9,0.35411]
[1729733638518,2.2296,2544.0,2543.9,0.35411]
[1729733638719,6.54091948,2544.0,2543.9,0.35411]
[1729733642720,6.89501948,2544.0,2543.8,0.35412]
[1729733643232,6.89501948,2544.0,2543.7,1.262]
[1729733643233,0.35413,2543.9,2543.7,0.35414]
[1729733643720,9.74871948,2544.0,2543.5,0.0982]
[1729733644028,0.35415,2543.7,2543.5,0.35417]
[1729733644231,0.35414,2543.8,2543.6,0.35416]
[1729733644622,4.49815211,2543.7,2543.6,0.35416]
[1729733644930,4.85231211,2543.7,2543.5,0.35417]
[1729733645223,0.7828,2543.6,2543.5,0.35417]
[1729733645629,5.31965539,2543.6,2543.4,0.35418]
[1729733645925,1.5045,2543.5,2543.3,0.0982]
[1729733646428,1.5045,2543.5,2542.9,6.92851718]
[1729733646429,4.18269539,2543.4,2542.9,6.92851718]
[1729733646622,4.18269539,2543.4,2543.3,0.3542]
[1729733647127,4.18269539,2543.4,2542.9,7.02681718]
[1729733647425,4.18269539,2543.4,2543.3,0.3542]
[1729733647831,4.18269539,2543.4,2543.2,0.35421]
[1729733648026,4.53688539,2543.4,2543.2,0.35421]
[1729733648535,4.18269539,2543.4,2543.2,0.35421]
[1729733649525,1.5045,2543.5,2543.1,2.45871718]
[1729733649728,1.5045,2543.5,2543.4,0.35419]
[1729733649928,4.45419451,2543.4,2543.3,0.35419]
[1729733650328,1.5045,2543.5,2543.4,0.35419]
[1729733650527,1.57004072,2543.5,2543.4,0.35419]
[1729733650731,5.71667993,2543.5,2543.4,0.35419]
[1729733650929,8.85893921,2543.5,2543.4,0.35419]
[1729733651334,5.65113921,2543.5,2543.4,0.35419]
[1729733651635,8.85893921,2543.5,2543.4,0.35419]
[1729733651826,5.65113921,2543.5,2543.4,0.35419]
[1729733655033,4.91383921,2543.5,2543.4,0.35419]
[1729733655236,3.56192,2543.9,2543.8,0.35413]
[1729733655237,3.9501,2543.9,2543.8,0.35413]
[1729733655740,8.47131396,2543.9,2543.8,0.35413]
[1729733656048,9.21361396,2543.9,2543.8,0.35413]
[1729733656240,6.00581396,2543.9,2543.8,0.35413]
[1729733656540,6.00581396,2543.9,2543.7,0.35414]
[1729733657235,6.00581396,2543.9,2543.8,0.35413]
[1729733657438,6.35993396,2543.9,2543.7,0.35414]
[1729733657635,9.21361396,2543.9,2543.3,3.2078]
[1729733657825,9.21361396,2543.9,2543.0,3.2078]
[1729733657826,3.2078,2543.6,2543.0,3.2078]
[1729733658028,0.7333,2543.5,2543.0,3.2078]
[1729733658231,0.7423,2543.4,2543.3,0.3542]
[1729733661331,0.7423,2543.4,2543.2,0.35421]
[1729733661332,1.09649,2543.4,2543.2,0.35421]
[1729733661538,0.7423,2543.4,2543.3,0.3542]
[1729733661841,1.09649,2543.4,2543.2,0.35421]
[1729733662542,4.43074267,2543.3,2543.2,0.35421]
[1729733662737,4.78494267,2543.3,2543.1,0.35422]
[1729733663243,4.43074267,2543.3,2543.1,0.35422]
[1729733663629,4.43074267,2543.3,2543.2,0.35422]
[1729733666934,4.78495267,2543.3,2543.1,0.35422]
[1729733667333,4.43074267,2543.3,2543.1,0.35422]
[1729733667538,4.78494267,2543.3,2543.1,0.35422]
[1729733667841,4.43074267,2543.3,2543.2,0.35422]
[1729733668339,4.43074267,2543.3,2543.2,1.48868544]
[1729733672141,4.43074267,2543.3,2542.8,1.23276544]
[1729733672142,9.49720811,2543.3,2542.8,1.23276544]
[1729733672340,9.49720811,2543.3,2542.5,3.2078]
[1729733672341,4.43074267,2543.3,2543.2,1.13446544]
[1729733672540,4.78494267,2543.3,2543.2,1.13446544]
[1729733672936,5.91940811,2543.3,2543.2,1.13446544]
[1729733674542,5.98494731,2543.3,2543.2,1.13446544]
[1729733675738,5.98494731,2543.3,2543.1,1.48868544]
[1729733676047,0.0655392,2543.2,2543.1,1.48868544]
[1729733676441,4.53899706,2543.2,2543.1,1.48868544]
[1729733678241,4.53900392,2543.2,2543.1,1.13446544]
[1729733678546,4.89322392,2543.2,2543.1,1.13446544]
[1729733678755,4.82767786,2543.2,2543.1,1.13446544]
[1729733679047,4.89322393,2543.2,2543.1,1.13446544]
[1729733679339,4.53900393,2543.2,2543.1,1.13446544]
[1729733679543,4.53900393,2543.2,2543.1,1.48869544]
[1729733680746,4.53900393,2543.2,2543.1,1.13446544]
[1729733681340,4.82767786,2543.2,2543.1,1.13446544]
[1729733681543,5.9621433,2543.2,2543.1,1.13446544]
[1729733681741,5.9621433,2543.2,2543.0,1.48869544]
[1729733681933,1.86056544,2543.1,2542.9,1.48871544]
[1729733682134,0.7965,2543.0,2542.9,1.48871544]
[1729733682344,5.12260585,2543.0,2542.9,1.48871544]
[1729733683046,5.12260585,2543.0,2542.7,3.2078]
[1729733683047,10.18987129,2543.0,2542.7,0.35428]
[1729733683247,1.13446544,2542.8,2542.7,0.35428]
[1729733683450,1.13446544,2542.8,2542.6,1.13446544]
[1729733683747,0.7261,2542.7,2542.6,1.48876544]
[1729733684141,4.87002632,2542.7,2542.6,1.48876544]
[1729733695136,6.00449176,2542.7,2542.6,0.3543]
[1729733695343,6.00449176,2542.7,2542.6,1.48876544]
[1729733695940,4.87002632,2542.7,2542.6,1.48876544]
[1729733700942,4.14392632,2542.7,2542.6,1.48876544]
[1729733704350,4.14392632,2542.7,2542.6,1.61187447]
[1729733705353,4.0043,2543.0,2542.9,0.35426]
[1729733705557,5.20427356,2543.0,2542.9,0.35426]
[1729733705854,9.35974788,2543.0,2542.9,0.35426]
[1729733706545,9.71399788,2543.0,2542.7,1.13446544]
[1729733706746,0.06550812,2542.9,2542.7,0.35428]
[1729733706945,1.19997356,2542.9,2542.7,1.13446544]
[1729733707146,5.13876544,2543.0,2542.9,0.35426]
[1729733707353,5.20429463,2543.0,2542.9,0.35426]
[1729733707654,13.56768691,2543.0,2542.9,0.35426]
[1729733707857,13.56768691,2543.0,2542.8,1.13446544]
[1729733708058,0.06552919,2542.9,2542.8,1.48873544]
[1729733708352,4.15712414,2542.9,2542.8,1.48873544]
[1729733708849,4.15713276,2542.9,2542.8,1.48873544]
[1729733709163,0.7965,2543.0,2542.9,0.35426]
[1729733709350,0.7965,2543.0,2542.9,1.48872544]
[1729733710551,0.7965,2543.0,2542.8,1.13446544]
[1729733710552,6.03875282,2543.0,2542.8,1.13446544]
[1729733710761,4.90428738,2543.0,2542.9,0.35426]
[1729733711153,4.90428738,2543.0,2542.8,1.48872544]
[1729733711353,5.25853738,2543.0,2542.8,1.48872544]
[1729733711657,4.90428738,2543.0,2542.8,1.48872544]
[1729733712351,4.90428738,2543.0,2542.9,0.35426]
[1729733713454,4.90428738,2543.0,2542.8,0.35426]
[1729733713455,10.32579282,2543.0,2542.8,0.35426]
[1729733713659,6.39299282,2543.0,2542.8,1.48872544]
[1729733714561,6.39299282,2543.0,2542.8,1.13446544]
[1729733714764,0.35428,2542.8,2542.6,1.13446544]
[1729733715061,1.48873544,2542.9,2542.7,1.13446544]
[1729733715454,4.82958669,2542.8,2542.7,1.13446544]
[1729733716057,4.47531669,2542.8,2542.7,1.13446544]
[1729733716259,4.82958669,2542.8,2542.7,1.13446544]
[1729733716654,4.47531669,2542.8,2542.7,1.13446544]
[1729733716851,4.47531669,2542.8,2542.7,1.48875544]
[1729733717055,4.47531669,2542.8,2542.7,1.61186913]
[1729733717255,5.27099161,2542.9,2542.8,0.35427]
[1729733717461,1.13446544,2542.9,2542.8,0.47738369]
[1729733717757,5.34750793,2542.9,2542.8,0.47738369]
[1729733718361,5.34750793,2542.9,2542.7,1.13446544]
[1729733718668,5.34750793,2542.9,2542.8,0.35427]
[1729733718859,5.34750793,2542.9,2542.8,1.48873544]
[1729733719560,4.21304249,2542.9,2542.8,1.611844]
[1729733719751,0.7965,2543.0,2542.9,0.35426]
[1729733719956,0.7965,2543.0,2542.9,1.611834]
[1729733720151,0.7965,2543.0,2542.9,1.80878355]
[1729733720655,0.7965,2543.0,2542.9,1.611834]
[1729733722862,0.7965,2543.0,2542.9,1.48872544]
[1729733726269,3.2078,2543.4,2543.2,0.3542]
[1729733726467,0.7894,2543.3,2543.2,0.3542]
[1729733726668,0.7894,2543.3,2543.2,1.48866544]
[1729733727371,1.5523,2543.3,2543.2,1.48866544]
[1729733728167,32.0,2544.2,2543.2,8.27426544]
[1729733728168,3.2078,2543.7,2543.2,8.27426544]
[1729733728370,3.2078,2543.7,2543.6,1.48861544]
[1729733728797,7.50421792,2543.7,2543.6,1.48861544]
[1729733729002,3.2078,2543.7,2543.6,1.48861544]
[1729733729890,4.34226544,2544.0,2543.9,0.35412]
[1729733730289,8.81181983,2544.0,2543.8,0.35413]
[1729733730491,8.74629307,2544.0,2543.8,1.13446544]
[1729733730789,8.74629307,2544.0,2543.8,1.48858544]
[1729733731895,8.74629307,2544.0,2543.8,1.13446544]
[1729733732195,8.74629307,2544.0,2543.9,0.35412]
[1729733732394,8.74629307,2544.0,2543.8,1.13446544]
[1729733732395,8.81182028,2544.0,2543.8,1.13446544]
[1729733732588,9.50449307,2544.0,2543.8,1.13446544]
[1729733732995,9.50449307,2544.0,2543.9,0.35412]
[1729733733204,9.57002068,2544.0,2543.9,0.35412]
[1729733733400,9.50449307,2544.0,2543.9,0.35412]
[1729733733602,9.57002001,2544.0,2543.9,1.48858544]
[1729733734101,9.50449307,2544.0,2543.9,1.48858544]
[1729733734310,3.966,2544.0,2543.9,1.48858544]
[1729733734601,3.966,2544.0,2543.9,5.41978544]
[1729733734602,3.2078,2544.0,2543.9,5.41978544]
[1729733736002,3.2078,2544.0,2543.9,1.48858544]
[1729733736200,3.2078,2544.0,2543.9,5.41978544]
[1729733736904,3.2078,2544.0,2543.9,1.48712]
[1729733736905,4.69637544,2544.0,2543.9,1.48712]
[1729733737108,3.2078,2544.0,2543.9,2.62158544]
[1729733737299,0.2263093,2545.0,2543.9,7.40313088]
[1729733737500,0.88467,2545.8,2545.5,0.35389]
[1729733737501,0.35386,2545.8,2545.5,0.35389]
[1729733737706,1.5344,2545.7,2545.6,0.35388]
[1729733738003,4.12408299,2545.7,2545.6,0.35388]
[1729733738307,4.12408299,2545.7,2545.4,1.133]
[1729733738308,3.2078,2545.9,2545.4,1.133]
[1729733738510,3.9801,2545.9,2545.8,1.48831544]
[1729733738811,8.28688777,2545.9,2545.8,1.13446544]
[1729733739008,8.28688777,2545.9,2545.8,8.62411544]
[1729733739009,5.07908777,2545.9,2545.8,8.62411544]
[1729733739303,3.2078,2546.2,2546.1,0.35381]
[1729733739506,3.2078,2546.2,2546.1,1.48827544]
[1729733739886,3.2078,2546.2,2546.1,1.13446544]
[1729733740386,3.2078,2546.2,2546.0,1.48682]
[1729733741681,3.2078,2546.2,2546.0,1.133]
[1729733742482,0.7309,2546.4,2546.1,3.2078]
[1729733742880,4.52452603,2546.2,2546.1,3.2078]
[1729733743071,4.52452603,2546.3,2546.1,3.2078]
[1729733743275,1.08467,2546.4,2546.1,3.2078]
[1729733743476,4.52452603,2546.3,2546.1,3.2078]
[1729733744182,4.52452603,2546.3,2546.1,3.56161]
[1729733744779,4.52452603,2546.3,2546.1,3.2078]
[1729733746588,4.52452603,2546.3,2546.1,4.3308]
[1729733747084,4.52452603,2546.3,2546.1,3.2078]
[1729733747277,4.52452603,2546.3,2545.8,2.45514517]
[1729733747278,0.35381,2546.2,2545.8,3.2078]
[1729733747482,0.35381,2546.2,2545.9,1.123]
[1729733747684,4.19915832,2546.1,2545.9,1.47684]
[1729733748188,4.60391517,2546.2,2545.9,1.123]
[1729733748484,0.3538,2546.2,2545.9,1.123]
[1729733748785,4.25011517,2546.1,2545.9,1.47684]
[1729733748994,0.7642,2546.0,2545.9,1.47684]
[1729733750691,1.11804,2546.0,2545.6,2.80902517]
[1729733750888,4.98974534,2546.0,2545.6,1.123]
[1729733751079,0.35385,2545.8,2545.6,1.123]
[1729733751482,0.35385,2545.8,2545.4,2.90724517]
[1729733751483,5.00074534,2545.7,2545.4,2.90724517]
[1729733751690,5.00074534,2545.7,2545.4,2.55334517]
[1729733751691,0.35388,2545.6,2545.4,2.55334517]
[1729733751891,5.00074534,2545.7,2545.4,2.45514517]
[1729733751892,5.35461534,2545.7,2545.4,2.45514517]
[1729733752095,4.15741036,2545.5,2545.4,2.45514517]
[1729733752293,4.15741036,2545.6,2545.4,2.45514517]
[1729733752587,1.12908,2545.7,2545.4,2.45514517]
[1729733752798,4.80604187,2545.6,2545.4,2.45514517]